Workbook

Sheet 표지
A5: 2019학년도
A6: 타이뻬이한국학교회계 2차 추가경정 세입세출 예산
A19: 타 이 뻬 이 한 국 학 교

Sheet 총칙
A2: 예 산 총 칙
B4: 제 1 조 2019학년도 타이뻬이한국학교회계 세입ㆍ세출 예산 총액은 세입ㆍ세출 각각 19,595,268NTD로
B5: 하며, 세입ㆍ세출의 명세는 『세입ㆍ세출예산서』와 같다.
B7: 제2조 국가로부터 용도가 지정되어 교부된 경비 또는 수익자부담경비는 추가경정예산의 성립 전에
B8: 사용할 수 있으며, 이를 차기 추가경정예산에 반영한다.
B10: 제3조 동일 예산 관내의 항간 또는 목간에 예산의 과부족이 있는 경우에는 사학기관재무ㆍ회계규칙
B11: 제21조 제3항의 규정에 의하여 상호 전용할 수 있다.
B12: 단, 회계연도 경과 후에는 예산을 전용할 수 없으며, 업무추진비에 충당하기 위하여 다른
B13: 비목에서 전용할 수 없다.
B15: 제4조 다음의 경비에 부족이 생겼을 때에는 비목 상호간 또는 타 비목으로부터 이용할 수 있다.
B16: 단; 인건비 및 시설비의 예산은 다른 과목으로 이용할 수 없다.
B17: 1. 교원 및 직원 인건비, 연구비, 수당
B18: 2. 비정규직보수, 강사료
B19: 3. 세금, 공과금, 반환금

Sheet 세입
A1: 2019학년도 타이뻬이한국학교회계 세입․세출예산서
A2: (회계연도 2019년 3월 1일 ~ 2020년 2월 28일)
A3: □ 세입
A4: 【단위 : 현지화 NTD】
A5: 구 분 | C5: (Y-1)예산 | D5: (Y-2)결산 | E5: (Y)예산 | F5: 증감 | G5: 산출기초(단위: NTD) | J5: 비고
C6: (A) | D6: (B) | E6: (C) | F6: (C-A)
A7: 학부모부담수입 | C7: =C9+C12+C18 -> 6,497,510 | D7: 0 | E7: =E9+E12+E16+E18 -> 5,331,942 | F7: =E7-C7 -> -1,165,568
B9: - 입학금 | C9: 450,000 | E9: =I9 -> 630,000 | F9: =E9-C9 -> 180,000 | G9: 1. 입학금 | I9: =SUM(I10:I11) -> 630,000
G10: ㅇ유치원 30,000NTD×11명+15,000NTD×2명 | H10: = | I10: =30000*11+15000*2 -> 360,000
G11: ㅇ초등학생 15,000NTD×12명+30,000NTD×3명 | H11: = | I11: =15000*12+30000*3 -> 270,000
B12: - 수업료 | C12: 3,735,000 | E12: =I12 -> 3,586,793 | F12: =E12-C12 -> -148,207 | G12: 1. 수업료 | I12: =SUM(I13:I14) -> 3,586,793
G13: ㅇ유치원 40,000NTD×20명×2회-26,207NTD | H13: = | I13: =40000*20*2-26207 -> 1,573,793
G14: ㅇ초등학생 30,500NTD×33명×2회 | H14: = | I14: =30500*33*2 -> 2,013,000
G15: 2. 지난년도 수업료 | I15: 0
B16: - 학교운영지원비 | C16: 0 | D16: 0 | E16: =I16 -> 0 | F16: =E16-C16 -> 0 | G16: 1. 학교운영지원비 | I16: 0
B18: - 수익자부담경비 | C18: 2,312,510 | E18: =I18+I23+I30+I33+I27 -> 1,115,149 | F18: =E18-C18 -> -1,197,361 | G18: 1. 급식비 | I18: =SUM(I19:I22) -> 0
G19: ㅇ학생 110NTD×50명×181식 | H19: = | I19: 0
G20: ㅇ교직원 110NTD×5명×181식 | H20: = | I20: 0
G21: ㅇ요구르트 16NTD×20명×180일 | H21: = | I21: 0
G22: ㅇ우유 18NTD×20명×180일 | H22: = | I22: 0
G23: 2. 현장체험학습비 | I23: =I24+I25+I26 -> 63,360
G24: ㅇ초등 현장체험학습비 300NTD×33명×1회 | H24: = | I24: =300*33 -> 9,900
G25: ㅇ유치원 현장체험학습비 5,405NTD | H25: = | I25: 5,405
G26: ㅇ수학여행 9,611NTD×5명×1회 | H26: = | I26: =9611*5 -> 48,055
G27: 3. 토요한글학교운영비 | I27: =SUM(I28:I29) -> 373,600
G28: ㅇ토요한글학교 수업료 | H28: = | I28: 373,600
G30: 4. 방과후교육활동비 | I30: =SUM(I31:I32) -> 223,400
G31: ㅇ방과후교육활동비 | H31: = | I31: 223,400
G33: 5. 기타수익자부담경비 | I33: =SUM(I34:I36) -> 454,789
G34: ㅇ통학버스비 314NTD×10명×182일 | H34: = | I34: 435,053
G35: ㅇ졸업앨범(초등학생) 1,550NTD×4명 | H35: = | I35: =1550*4 -> 6,200
G36: ㅇ졸업앨범(유치원) 9명 | H36: = | I36: =1681*6+1150*3 -> 13,536
A37: 교육부지원금 | C37: =SUM(C39:C55) -> 10,238,266 | D37: 0 | E37: =SUM(E39,E41,E43,E48,E50,E46,E52) -> 12,463,157 | F37: =F39+F41+F43+F46+F48+F50+F52 -> 2,224,891
B39: - 현재채용교직원인건비 | C39: 4,995,454 | E39: =I39 -> 5,753,542 | F39: =E39-C39 -> 758,088 | G39: 1. 현재채용교직원인건비 | I39: =SUM(I40) -> 5,753,542
G40: ㅇ인건비 5,753,542NTD×1년 | H40: = | I40: =2930020+92879*30.4 -> 5,753,542
B41: - 운영비 | C41: 4,387,984 | E41: =I41 -> 4,667,818 | F41: =E41-C41 -> 279,834 | G41: 1. 운영비 | I41: =SUM(I42) -> 4,667,818
G42: ㅇ운영비 4,667,818NTD×1년 | H42: = | I42: =2353040+38072*2*30.4 -> 4,667,818
B43: - 임차료 | C43: 43,167 | E43: =I43 -> 49,817 | F43: =E43-C43 -> 6,650 | G43: 1. 임차료 | I43: =SUM(I44:I45) -> 49,817
G44: ㅇ나대지 49,817NTD(1년)×1회 | H44: = | I44: 49,817
H45: =
B46: - 저소득층자녀지원 | C46: 79,461 | D46: 0 | E46: =I46 -> 30,000 | F46: =E46-C46 -> -49,461 | G46: 1. 저소득층자녀지원 | I46: =I47 -> 30,000
G47: ㅇ저소득층자녀지원금 30,000NTD×1회 | I47: 30,000
B48: - 방과후학교지원 | C48: 0 | D48: 0 | E48: =I48 -> 88,000 | F48: =E48-C48 -> 88,000 | G48: 1. 방과후학교지원 | I48: =SUM(I49) -> 88,000
G49: ㅇ방과후학교운영비 | H49: = | I49: 88,000
B50: - 시설(대수선)비 | C50: 0 | E50: =I50 -> 1,248,285 | F50: =E50-C50 -> 1,248,285 | G50: 1. 시설(대수선)비 | I50: =I51 -> 1,248,285
G51: ㅇ급식실 조성비(교육부지원금) | I51: 1,248,285
B52: - 기타교육부지원금 | C52: 732,200 | D52: 0 | E52: =I52 -> 625,696 | F52: =E52-C52 -> -106,504 | G52: 1. 기타교육부지원 | I52: =SUM(I53:I55) -> 625,696
G53: ㅇ토요한글학교운영비(재단지원금) | H53: = | I53: 161,016
G54: ㅇ통학버스 안전요원 인건비 (교육부지원금) | H54: = | I54: 112,693
G55: ㅇ교수학습재료구입비 | H55: = | I55: 351,987
A56: 자체수입 | C56: =SUM(C58+C62) -> 68,000 | D56: 0 | E56: =E58+E62 -> 11,500 | F56: =SUM(F58,F62) -> -56,500
B58: - 사용료및수수료 | C58: 62,000 | E58: =I58+I60 -> 5,500 | F58: =E58-C58 -> -56,500 | G58: 1.사용료 | I58: =SUM(I59) -> 3,500
G59: ㅇ 교실 및 강당 사용료 3,500NTD×1회 | H59: = | I59: 3,500
G60: 2. 수수료 | I60: =SUM(I61) -> 2,000
G61: ㅇ제증명발급 수수료 100NTD×3건+1,700 NTD | H61: = | I61: =100*3+1700 -> 2,000
B62: - 잡수입 | C62: 6,000 | E62: =I62+I64+I65 -> 6,000 | F62: =E62-C62 -> 0 | G62: 1. 이자수입 | I62: =SUM(I63) -> 6,000
G63: ㅇ예금이자 3,000NTD×2회 | H63: = | I63: =3000*2 -> 6,000
G64: 2. 지난년도 수입 | I64: 0
G65: 3. 기타잡수입 | I65: =SUM(I66:I66) -> 0
H66: =
A67: 전입금 및 지원금 | C67: =SUM(C69:C74) -> 0 | D67: 0 | E67: =E69+E71+E73 -> 100,000 | F67: 0
B69: - 학교발전기금전입금 | C69: 0 | D69: 0 | E69: =I69 -> 100,000 | F69: =E69-C69 -> 100,000 | G69: 1. 학교발전기금전입금 | I69: =I70 -> 100,000
G70: ㅇ 통학버스비 운영 지원금 | I70: 100,000
B71: - 법인전입금 | C71: 0 | D71: 0 | E71: =I71 -> 0 | F71: =E71-C71 -> 0 | G71: 1. 법인전입금 | I71: 0
B73: - 기타지원금 | C73: 0 | D73: 0 | E73: =I73 -> 0 | F73: =E73-C73 -> 0 | G73: 1. 기타지원금 | I73: 0
A75: 기타수입 | C75: =SUM(C77:C86) -> 1,688,669 | D75: 0 | E75: =E77+E79+E83+E85 -> 1,688,669 | F75: =SUM(F77,F79,F83,F85) -> 0
B77: - 과년도 수입 | C77: 0 | D77: 0 | E77: =I77 -> 0 | F77: =E77-C77 -> 0 | G77: 1. 과년도수입 | I77: 0
B79: - 이월금 | C79: 1,688,669 | E79: =I79+I81+I82 -> 1,688,669 | F79: =E79-C79 -> 0 | G79: 1. 순세계잉여금 | I79: =I80 -> 1,688,669
G80: ㅇ 2018학년도 회계 잉여금 | H80: = | I80: 1,688,669
G81: 2. 계속비 | I81: 0
G82: 3. 이월사업비
B83: - 적립금 | C83: 0 | D83: 0 | E83: =I83 -> 0 | F83: =E83-C83 -> 0 | G83: 1. 적립금 | I83: 0
B85: - 환차익 | C85: 0 | D85: 0 | E85: =I85 -> 0 | F85: =E85-C85 -> 0 | G85: 1. 환차익 | I85: 0
A87: 합 계 | C87: =C75+C67+C56+C37+C7 -> 18,492,445 | D87: 0 | E87: =SUM(E75,E67,E56,E37,E7) -> 19,595,268 | F87: =E87-C87 -> 1,102,823

Sheet 세출
A1: □ 세출
A2: 【단위 : 현지화(NTD, 괄호안 USD, 1USD=29NTD)】
A3: 구 분 | C3: (Y-1)예산 | D3: (Y-2)결산 | E3: (Y)예산 | F3: 증감 | G3: 산출기초(단위: NTDD) | J3: 비고
C4: (A) | D4: (B) | E4: (C) | F4: (C-A)
A5: 인건비 | C5: =SUM(C7,C22,C39) -> 9,165,380 | D5: 0 | E5: =SUM(E7,E22,E39) -> 9,090,821 | F5: =E5-C5 -> -74,559
B7: - 교원 | C7: 6,655,300 | E7: =SUM(I7,I10,I18,I20) -> 6,227,301 | F7: =E7-C7 -> -427,999 | G7: 1. 기본급 | I7: =SUM(I8:I9) -> 3,191,750
G8: ㅇ교사 45,000NTD×5명×6월+ 45,000NTD×4명×6월 | H8: = | I8: =45000*5*6+45000*4*6 -> 2,430,000
G9: ㅇ시간강사 550NTD×1명×5시간×87일×550NTD시간×2명×5시간×95일 | H9: = | I9: =550*1*87*5+550*2*95*5 -> 761,750
G10: 2. 수당 | I10: =SUM(I11:I17) -> 2,452,000
G11: ㅇ담임수당 4,000NTD×5명×6월+4,000NTD×4명×6월 | H11: = | I11: =4000*5*6+4000*4*6 -> 216,000
G12: ㅇ부장수당 4,000NTD×1명×12월+2,000NTD×2명×6월 | H12: = | I12: =4000*1*12+2000*2*6 -> 72,000
G13: ㅇ복지수당 7,000NTD×5명×6월+7,000NTD×4명×6월 | H13: = | I13: =7000*5*6+7000*4*6 -> 378,000
G14: ㅇ주택수당 | H14: = | I14: =18000*2*6+18000*1*3+20000*4*11 -> 1,150,000
G15: ㅇ경력수당 33,000NTD×6월+7,000NTD×4명×6월 | H15: = | I15: =33000*6+7000*4*6 -> 366,000
G16: ㅇ보전수당 4,000NTD×5명×6월+4,000NTD×4명×6월 | H16: = | I16: =4000*5*6+4000*4*6 -> 216,000
G17: ㅇ시간외근무수당 300NTD×5명×3시간×12월 | H17: = | I17: =300*5*3*12 -> 54,000
G18: 3. 복리후생비 | I18: =SUM(I19) -> 216,000
G19: ㅇ명절휴가비 45,000NTD×4명×2회×60% | H19: = | I19: =45000*4*2*0.6 -> 216,000
G20: 4. 부담금 | I20: =SUM(I21) -> 367,551
G21: ㅇ건강보험기관부담금부담금 25,000NTD×6월+22,000NTD*6월+85,551NTD | H21: = | I21: =25000*6+22000*6+85551 -> 367,551
B22: - 직원 및 계약교직원 | C22: 1,916,080 | E22: =SUM(I22,I27,I34,I36) -> 2,013,280 | F22: =E22-C22 -> 97,200 | G22: 1. 기본급 | I22: =SUM(I23:I26) -> 1,238,880
G23: ㅇ실장 45,000NTD×1명×12월 | H23: = | I23: =45000*12 -> 540,000
G24: ㅇ행정원 25,000NTD×1명×6월+32,000NTD×6월 | H24: = | I24: =25000*6+32000*6 -> 342,000
G25: ㅇ유치원 교육전담사 170NTD×1명×8시간×183일 | H25: = | I25: =170*8*183 -> 248,880
G26: ㅇ유치원 보조원 150NTD×1명×4시간×180일 | H26: = | I26: =150*1*4*180 -> 108,000
G27: 2. 수당 | I27: =SUM(I28:I33) -> 583,600
G28: ㅇ직책수당(실장) 4,000NTD×1명×12월 | H28: = | I28: =4000*12 -> 48,000
G29: ㅇ경력수당(실장) 6,000NTD×1명×12월 | H29: = | I29: =6000*12 -> 72,000
G30: ㅇ복지수당 7,000NTD×2명×12월 | H30: = | I30: =7000*2*12 -> 168,000
G31: ㅇ부양가족 추가 주택수당 2,000NTD×1명×11월 | H31: = | I31: =2000*1*11 -> 22,000
G32: ㅇ주택수당(실장) 18,000NTD×1명×12월 | H32: = | I32: =18000*12 -> 216,000
G33: ㅇ시간외근무수당 300NTD×2명×8시간×12월 | H33: = | I33: =300*2*8*12 -> 57,600
G34: 3. 복리후생비 | I34: =SUM(I35:I35) -> 92,400
G35: ㅇ명절휴가비 38,500NTD×2명×2회×60% | H35: = | I35: =38500*2*2*0.6 -> 92,400
G36: 4. 부담금 | I36: =SUM(I37:I38) -> 98,400
G37: ㅇ건강보험기관부담금부담금 5,000NTD×12월 | H37: = | I37: =5000*12 -> 60,000
G38: ㅇ노동보험기관부담금 3,200NTD×12월 | H38: = | I38: =3200*12 -> 38,400
B39: - 퇴직적립금 | C39: 594,000 | E39: =SUM(I39,I42) -> 850,240 | F39: =E39-C39 -> 256,240 | G39: 1. 퇴직(적립)금 | I39: =SUM(I40:I41) -> 580,240
G40: ㅇ대만국적 교직원 퇴직금 | H40: = | I40: 550,000
G41: ㅇ퇴휴금(행정원) 2,520NTD×1명×12월 | H41: = | I41: =2520*1*12 -> 30,240
G42: 2.재외교육기여장려금 | I42: =SUM(I43:I43) -> 270,000
G43: ㅇ교사 90,000NTD×1명+90,000NTD×2명 | H43: = | I43: =90000*3 -> 270,000
A44: 학교운영비 | C44: =SUM(C46,C87,C152,C177) -> 5,321,947 | D44: 0 | E44: =SUM(E46,E87,E152,E177) -> 5,978,517 | F44: =E44-C44 -> 656,570 | H44: =
B46: - 일반운영비 | C46: 1,490,962 | E46: =SUM(I46,I68,I82,I84,I85) -> 1,573,962 | F46: =E46-C46 -> 83,000 | G46: 1. 교육지원부 운영 | I46: =SUM(I47:I67) -> 455,094
G47: ㅇ여비(국내) 200원×12명×2회×12월 | H47: = | I47: =200*12*2*12 -> 57,600
G48: ㅇ여비(국외출장) 20,000원×2명×2회+96,000NTD | H48: = | I48: =20000*2*2+96000 -> 176,000
G49: ㅇ교직원 채용경비 32,000원×1회 | H49: = | I49: =32000*1 -> 32,000
G50: ㅇ초등현장학습 인솔 교직원 중식 300NTD×8명×1회 | H50: = | I50: =300*8*4 -> 9,600
G51: ㅇ초등현장학습 인솔교직원 활동비 300NTD×8명×2회 | H51: = | I51: =300*8*2 -> 4,800
G52: ㅇ유치원현장학습 인솔교직원 중식 300NTD×4명×1회 | H52: = | I52: =300*4*1 -> 1,200
G53: ㅇ유치원현장학습 인솔교직원 활동비 300NTD×4명×1회 | H53: = | I53: =300*4*1 -> 1,200
G54: ㅇ수학여행인솔교사 출장비 10,000NTD | H54: = | I54: 10,000
G55: ㅇ수학여행인솔교사 숙박비 2,500NTD×2실×1박+1,000NTD | H55: = | I55: =5000+1000 -> 6,000
G56: ㅇ수학여행인솔교사 식비 300NTD×2명×11회 | H56: = | I56: =300*2*11 -> 6,600
G57: ㅇ수학여행인솔교사 입장료 2,300NTD×2명 | H57: = | I57: =2300*2 -> 4,600
G58: ㅇ수학여행인솔교사 교통비 9,500NTD×2명 | H58: = | I58: =9500*2 -> 19,000
G59: ㅇ수학여행인솔교사 여행자보험 1,472NTD×2명 | H59: = | I59: =1472*2 -> 2,944
G60: ㅇ수학여행인솔교사 예비비 100NTD×2명 | H60: = | I60: 200
G61: ㅇ거류비자 및 공작증 신청 4,325NTD×4명 | H61: = | I61: =4325*4 -> 17,300
G62: ㅇ교직원 귀임 및 부임항공료 9,000NTD×5명 | H62: = | I62: =9000*5 -> 45,000
G63: ㅇ홈페이지 도메인 사용료 750NTD×1년 | H63: = | I63: 750
G64: ㅇ예금잔액증명 발급수수료 500NTD×5회 | H64: = | I64: =500*5 -> 2,500
G65: ㅇ타행송금및환전수수료(납입금환불) 30NTD×50회 | H65: = | I65: =30*50 -> 1,500
G66: ㅇ행정장비 유지보수 6,300NTD×1회 | H66: = | I66: =6300 -> 6,300
G67: ㅇ행정장비 소모품 구입 10,000NTD×5회 | H67: = | I67: =10000*5 -> 50,000
G68: 2. 학교시설장비유지 | I68: =SUM(I69:I81) -> 997,200
G69: ㅇ전화 및 인터넷요금 5,500N*12월 | H69: = | I69: =5500*12 -> 66,000
G70: ㅇ전기요금 20,000NTD×12월 | H70: = | I70: =20000*12 -> 240,000
G71: ㅇ상하수도요금 500NTD×12월 | H71: = | I71: =500*12 -> 6,000
G72: ㅇ우편요금 150NTD×12월 | H72: = | I72: =150*12 -> 1,800
G73: ㅇ화장실 청소용역 12,000NTD×10월 | H73: = | I73: =12000*10 -> 120,000
G74: ㅇ건물 청소용역 17,000NTD×5월+20,000NTD×5월 | H74: = | I74: =17000*5+20000*5 -> 185,000
G75: ㅇ화장실 소모품 및 청소용품 2,000NTD×4회 | H75: = | I75: =2000*4 -> 8,000
G76: ㅇ기계경비용역료 7,000NTD×12월 | H76: = | I76: =7000*12 -> 84,000
G77: ㅇ시설소모품구입 10,000NTD×5회 | H77: = | I77: =10000*5 -> 50,000
G78: ㅇ소방정밀점검 12,000NTD×1회 | H78: = | I78: =12000*1 -> 12,000
G79: ㅇ승강기안전관리용역 3,000NTD×12월 | H79: = | I79: =3000*12 -> 36,000
G80: ㅇ전기안전관리용역 3,200NTD×12월 | H80: = | I80: =3200*12 -> 38,400
G81: ㅇ소규모수선 10,000NTD×15회 | H81: = | I81: =10000*15 -> 150,000
G82: 3. 교직원 복지 및 역량강화 | I82: =SUM(I83) -> 60,000
G83: ㅇ교직원 자율연수비 1,000NTD×5명×12월 | H83: = | I83: =1000*5*12 -> 60,000
G84: 4. 업무용 차량운영
G85: 5. 임차료 | I85: =SUM(I86:I86) -> 61,668
G86: ㅇ나대지 61,668NTD×1년 | H86: = | I86: =61668 -> 61,668
B87: - 교수학습 활동비 | C87: 3,211,799 | E87: =SUM(I87,I93,I96,I98,I107,I117,I119,I128,I132,I135,I142,I147,I149) -> 3,530,855 | F87: =E87-C87 -> 319,056 | G87: 1. 교과활동지원 | I87: =SUM(I88:I92) -> 400,000
G88: ㅇ학습준비물(교수학습자료지원금) 10,000NTD×35명 | H88: = | I88: =10000*35 -> 350,000 | J88: 교수
G89: ㅇ사무용품 구입(교수학습자료지원금) 2,000NTD×5회 | H89: = | I89: =2000*5 -> 10,000 | J89: 교수
G90: ㅇ복사용지(교수학습자료지원금) 5,000NTD×2회 | H90: = | I90: =5000*2 -> 10,000 | J90: 교수
G91: ㅇ행정장비 소모품(교수학습자료지원금) 4,000NTD×6회 | H91: = | I91: 24,000 | J91: 교수
G92: ㅇ보결수당 150NTD×40시간 | H92: = | I92: =150*40 -> 6,000
G93: 2. 예체능교과활동(초등학교) | I93: =SUM(I94:I95) -> 117,000
G94: ㅇ태권도복 600NTD×15벌 | H94: = | I94: =600*15 -> 9,000
G95: ㅇ태권도 강사수당 900NTD×1명×3시간×40회 | H95: = | I95: =900*3*40 -> 108,000
G96: 3. 예체능교과활동(유치원) | I96: =SUM(I97:I97) -> 0
H97: =
G98: 4. 영어교과활동 | I98: =SUM(I99:I106) -> 1,550,400
G99: ㅇ강사수당(초등) 650NTD×2명×4시간×180일+650NTD×1명×2시간×180일 | H99: = | I99: =650*4*2*180+650*1*2*180 -> 1,170,000
G100: ㅇ강사수당(유치원) 650NTD×1명×2시간×180일 | H100: = | I100: =650*1*2*180 -> 234,000
G101: ㅇ부장수당 2,000NTD×1명×10월 | H101: = | I101: =2000*1*10 -> 20,000
G102: ㅇ건강보험기관부담금 3,700NTD×6월+5,500NTD×6월 | H102: = | I102: =3700*6+5500*6 -> 55,200
G103: ㅇ학습준비물 100NTD×45명×2회 | H103: = | I103: =100*45*2 -> 9,000
G104: ㅇ공책 10NTD×45부×6회 | H104: = | I104: =10*45*6 -> 2,700
G105: ㅇ교재 1,300NTD×45부 | H105: = | I105: =1300*45 -> 58,500
G106: ㅇ행사물품 1,000NTD×1회 | H106: = | I106: =1000*1 -> 1,000
G107: 5. 중국어교과활동 | I107: =SUM(I108:I116) -> 1,070,600
G108: ㅇ강사수당(초등) 600NTD×2명×4시간×143일+550NTD×1명×2시간×143일 | H108: = | I108: =600*2*4*143+600*1*2*143 -> 858,000
G109: ㅇ강사수당(유치원) 600NTD×1명×1.5시간×143일 | H109: = | I109: =600*1.5*143 -> 128,700
G110: ㅇ부장수당 2,000NTD×1명×10월 | H110: = | I110: =2000*1*10 -> 20,000
G111: ㅇ 건강보험기관부담금 2,500NTD×6월 | H111: = | I111: =2500*6 -> 15,000
G112: ㅇ학습준비물 100NTD×45명×2회 | H112: = | I112: =100*45*2 -> 9,000
G113: ㅇ공책 10NTD×45부×6회 | H113: = | I113: =10*45*6 -> 2,700
G114: ㅇ교재 400NTD×90부 | H114: = | I114: =400*90 -> 36,000
G115: ㅇ행사물품 1,000NTD×1회 | H115: = | I115: =1000*1 -> 1,000
G116: ㅇ중국어능력평가 우편요금 50NTD×4회 | H116: = | I116: 200
G117: 6.유치원 교과활동 | I117: =SUM(I118:I118) -> 20,000
G118: ㅇ학습준비물 1,000NTD×20명 | H118: = | I118: =1000*20 -> 20,000
G119: 7. 자율활동(초등학교) | I119: =SUM(I120:I127) -> 51,000
G120: ㅇ학급운영비 200NTD×40명×2회 | H120: = | I120: =200*40*2 -> 16,000
G121: ㅇ환경정리 500NTD×6학급 | H121: = | I121: 3,000
G122: ㅇ학예회 무대장식 4,000NTD×1회 | H122: = | I122: =4000*1 -> 4,000
G123: ㅇ학예회 준비물품 400NTD×40명 | H123: = | I123: 16,000
G124: ㅇ체육대회 준비물품 200NTD×45개 | H124: = | I124: =200*45 -> 9,000
G125: ㅇ체육대회 풍선장식 2,000NTD×1회 | H125: = | I125: =2000*1 -> 2,000
G126: ㅇ체육대회 장소임대 1,000NTD×1회 | H126: = | I126: 1,000
G128: 8. 자율활동(유치원) | I128: =SUM(I129:I131) -> 12,500
G129: ㅇ학급운영비 400NTD×20명 | H129: = | I129: =400*20 -> 8,000
G130: ㅇ학예회경비 200NTD×20명 | H130: = | I130: =200*20 -> 4,000
G131: ㅇ환경정리 500NTD×1학급 | H131: = | I131: 500
A132: · | G132: 9. 교무업무운영 | I132: =SUM(I133:I134) -> 4,000
G133: ㅇ학교교육계획서 제작 400NTD×10부 | H133: = | I133: 4,000
G135: 10 입학식 및 졸업식(초등학교) | I135: =SUM(I136:I141) -> 11,701
G136: ㅇ입학식 선물 300NTD×13명 | H136: = | I136: =300*13 -> 3,900
G137: ㅇ졸업사진 촬영(교원) 400NTD×2명 | H137: = | I137: 800
G138: ㅇ졸업앨범 제작(교원,학교보관용) 667NTD×3부 | H138: = | I138: =667*3 -> 2,001
G139: ㅇ졸업식 장식 3,000NTD×1회 | H139: = | I139: 3,000
G140: ㅇ졸업식 안내장 발송 우편요금 200NTD×1회 | H140: = | I140: 200
G141: ㅇ졸업생 선물 600NTD×3개 | H141: = | I141: =600*3 -> 1,800
G142: 11. 입학식 및 졸업식(유치원) | I142: =SUM(I143:I146) -> 44,638
G143: ㅇ입학선물 584NTD×60개 | H143: = | I143: =584*60 -> 35,040
G144: ㅇ졸업사진 촬영(교원) 400NTD×3명 | H144: = | I144: =400*3 -> 1,200
G145: ㅇ졸업앨범 제작(교원,학교보관용) 666NTD×3부 | H145: = | I145: =666*3 -> 1,998
G146: ㅇ졸업선물 800NTD×8명 | H146: = | I146: =800*8 -> 6,400
G147: 12. 토요한글학교 운영(재외동포재단지원금) | I147: =SUM(I148:I148) -> 161,016
G148: ㅇ강사비 | H148: = | I148: 161,016
G149: 13. 방과후학교운영(교육부지원금) | I149: =SUM(I150:I151) -> 88,000
G150: ㅇ강사수당 | H150: = | I150: 60,000
G151: ㅇ 교재 및 재료비 | H151: = | I151: 28,000
A152: - 학생복리비 | C152: 595,186 | E152: =I152+I156+I161+I163+I172+I174+I176 -> 849,700 | F152: =E152-C152 -> 254,514 | G152: 1. 학생보건안전관리 | I152: =SUM(I153:I155) -> 46,650
G153: ㅇ학교안전공제회비(학생,교직원) 550NTD×53명 | H153: = | I153: =550*53 -> 29,150
G154: ㅇ응급학생 병원후송 500NTD×5회 | H154: = | I154: =500*5 -> 2,500
G155: ㅇ약품 1,500NTD×10회 | H155: = | I155: =1500*10 -> 15,000
G156: 2. 학교환경위생관리 | I156: =SUM(I157:I160) -> 39,800
G157: ㅇ정수기 필터교환 650NTD×2대×6회 | H157: = | I157: =650*2*6 -> 7,800
G158: ㅇ정수기 소독 3,500NTD×2대×1회 | H158: = | I158: =3500*2 -> 7,000
G159: ㅇ저수조 청소 5,000NTD×2회 | H159: = | I159: =5000*2 -> 10,000
G160: ㅇ교사 소독 5,000NTD×3회= | H160: = | I160: =5000*3 -> 15,000
G161: 3. 학교급식비 지원 | I161: =SUM(I162:I162) -> 108,100
G162: ㅇ간식비 지원 23NTD×94일×50명 = | H162: = | I162: =23*94*50 -> 108,100
G163: 4. 통학차량 운영지원 | I163: =SUM(I164:I171) -> 598,150
G164: ㅇ차량 보험료 40,00NTD×2대×1년 | H164: = | I164: =40000*2 -> 80,000
G165: ㅇ차량 등록세 및 연료세 15,00NTD×2대×1년 | H165: = | I165: =15000*2 -> 30,000
G166: ㅇ주차요금 7,000NTD×3분기 | H166: = | I166: =7000*3 -> 21,000
G167: ㅇ통학버스 안전도우미 인건비 (교육부 지원금) | H167: = | I167: 112,693
G168: ㅇ통학버스 안전도우미 인건비 (학교 지원금) | H168: = | I168: 60,307
G169: ㅇ통학버스 거시 안건비 학교 지원금 | H169: = | I169: =325*20*5+425*20*2.5 -> 53,750
G170: ㅇ통학버스 안전도우미 인건비 (발전기금 지원금) | H170: = | I170: 100,000
G171: ㅇ차량 유류 15,600NTD×9월 | H171: = | I171: =15600*9 -> 140,400
G172: 5. 현장학습 지원 | I172: =SUM(I173) -> 27,000
G173: ㅇ현장학습 차량비 지원(기사인건비) 750NTD×1명×12회×3시간 | H173: = | I173: =750*1*12*3 -> 27,000
G174: 6. 저소득층자녀 학비지원(교육부지원금) | I174: =I175 -> 30,000
G175: ㅇ저소득층 자녀 학비 지원금 30,000NTD | H175: = | I175: 30,000
G176: 7. 기타 학생복지 지원 | I176: 0
B177: - 업무추진비 | C177: 24,000 | E177: =SUM(I177) -> 24,000 | F177: =E177-C177 -> 0 | G177: 1. 기관업무추진비 | I177: =SUM(I178:I179) -> 24,000
G178: ㅇ경조사비 1,500NTD×2회 | H178: = | I178: =1500*2 -> 3,000
G179: ㅇ교직원 간담회 350NTD×12명×5회 | H179: = | I179: =350*12*5 -> 21,000
A180: 자산취득비 | C180: =C182 -> 20,000 | D180: 0 | E180: =E182 -> 20,000 | F180: =E180-C180 -> 0 | H180: =
B182: - 자산취득비 | C182: 20,000 | E182: =I182 -> 20,000 | F182: =E182-C182 -> 0 | G182: 1. 교육환경개선 | I182: =SUM(I183) -> 20,000
G183: ㅇ 사무용 비품 5,000NTD×4회 | H183: = | I183: =5000*4 -> 20,000
A184: 시설(대수선)비 | C184: =SUM(C186) -> 1,672,608 | D184: 0 | E184: =SUM(E186) -> 1,821,285 | F184: =E184-C184 -> 148,677 | H184: =
B186: - 시설비 | C186: 1,672,608 | E186: =I186 -> 1,821,285 | F186: =E186-C186 -> 148,677 | G186: 1. 시설비 | I186: =SUM(I187:I189) -> 1,821,285
G187: ㅇ 급식실 설치 공사비(교욱부 지원금) | I187: 1,248,285
G188: ㅇ 급식실 설치 공사비(학교지원금) | H188: = | I188: 553,000
G189: ㅇ 환경개선 10,000NTD×2회 | H189: = | I189: =10000*2 -> 20,000
A190: 수익자부담경비 | C190: =SUM(C192,C203,C205,C215,C222) -> 2,312,510 | D190: 0 | E190: =SUM(E192,E203,E205,E215,E222) -> 1,115,149 | F190: =E190-C190 -> -1,197,361 | H190: =
B192: - 현장학습비 | C192: 45,844 | E192: =SUM(I192,I195,I198) -> 63,360 | F192: =E192-C192 -> 17,516 | G192: 1. 현장체험학습(초등학교) | I192: =SUM(I193:I194) -> 9,900
G193: ㅇ버스 임차비 및 보험료 300NTD×33명 | H193: = | I193: =300*33 -> 9,900
H194: = | I194: 0
G195: 2. 현장체험학습(유치원) | I195: =SUM(I196:I197) -> 5,405
G196: ㅇ버스 임차비 | H196: = | I196: 5,405
H197: = | I197: 0
G198: 3. 수학여행 | I198: =SUM(I199:I202) -> 48,055
G199: ㅇ숙박비 938NTD×5명×4박 | H199: = | I199: 18,750
G200: ㅇ항공료 5,605NTD×5명 | H200: = | I200: 28,025
G201: ㅇ보험료 254NTD×5명 | H201: = | I201: 1,280
B203: - 학생수련활동비 | C203: 0 | D203: 0 | E203: 0 | F203: =E203-C203 -> 0 | G203: 1. 수련활동비 | I203: 0
B205: - 학교급식비 | C205: 1,217,450 | E205: =SUM(I205,I207,I211,I209,I213) -> 0 | F205: =E205-C205 -> -1,217,450 | G205: 1. 급식 재료구입비 | I205: =SUM(I206) -> 0
H206: =
G207: 2. 급식종사원인건비 | I207: =SUM(I208:I208) -> 0
G209: 3. 운영비 | I209: =I210 -> 0
G211: 4. 유제품대금 | I211: =SUM(I212:I212) -> 0
... 25 more rows
